[Event "Early-Titled-Tuesday-Blitz-August-29-2023"]
[Site "Chess.com"]
[Date "2023.08.29"]
[Round "3"]
[White "DanielTitichoca"]
[Black "wadsy27"]
[Result "0-1"]
[WhiteElo "2417"]
[BlackElo "2610"]
[TimeControl "180+1"]
[EndTime "8:30:33 PDT"]
[Termination "wadsy27 won by checkmate"]

1. c4 {[%clk 0:03:00.9]} 1... b6 {[%clk 0:02:57.4]} 2. e4 {[%clk 0:02:59]} 2...
Bb7 {[%clk 0:02:53.2]} 3. Nc3 {[%clk 0:02:59.4]} 3... e5 {[%clk 0:02:53.5]} 4.
d3 {[%clk 0:02:54.4]} 4... Bc5 {[%clk 0:02:53.3]} 5. Nge2 {[%clk 0:02:51]} 5...
Nf6 {[%clk 0:02:51.5]} 6. Ng3 {[%clk 0:02:51.4]} 6... Nc6 {[%clk 0:02:45.9]} 7.
a3 {[%clk 0:02:48.8]} 7... a5 {[%clk 0:02:40.6]} 8. Be2 {[%clk 0:02:44.3]} 8...
Nd4 {[%clk 0:02:40.4]} 9. O-O {[%clk 0:02:44.6]} 9... h5 {[%clk 0:02:37.1]} 10.
Na4 {[%clk 0:02:32.9]} 10... h4 {[%clk 0:02:35]} 11. Nf5 {[%clk 0:02:22.1]}
11... Nxf5 {[%clk 0:02:33.7]} 12. Nxc5 {[%clk 0:02:18.4]} 12... bxc5 {[%clk
0:02:31.3]} 13. exf5 {[%clk 0:02:18.1]} 13... h3 {[%clk 0:02:30.6]} 14. g3
{[%clk 0:02:10.9]} 14... d5 {[%clk 0:02:23.1]} 15. Bg5 {[%clk 0:02:07.6]} 15...
Qd6 {[%clk 0:02:10.4]} 16. Bf3 {[%clk 0:02:02.8]} 16... e4 {[%clk 0:02:03.5]}
17. dxe4 {[%clk 0:01:55]} 17... Nxe4 {[%clk 0:01:53.8]} 18. Bf4 {[%clk
0:01:54.7]} 18... Qd7 {[%clk 0:01:41.4]} 19. cxd5 {[%clk 0:01:53.3]} 19... Nd6
{[%clk 0:01:28.7]} 20. Re1+ {[%clk 0:01:50.1]} 20... Kd8 {[%clk 0:01:29.3]} 21.
Rc1 {[%clk 0:01:44.1]} 21... Qxf5 {[%clk 0:01:16.4]} 22. Rxc5 {[%clk 0:01:40.5]}
22... g5 {[%clk 0:01:16.3]} 23. Be5 {[%clk 0:01:32.7]} 23... f6 {[%clk
0:01:15.4]} 24. Bg4 {[%clk 0:01:22.4]} 24... Qg6 {[%clk 0:01:12.1]} 25. Bxd6
{[%clk 0:01:11.5]} 25... cxd6 {[%clk 0:01:12.2]} 26. Qe2 {[%clk 0:01:12.1]}
26... Re8 {[%clk 0:01:05.8]} 27. Qxe8+ {[%clk 0:01:07]} 27... Qxe8 {[%clk
0:01:05.8]} 28. Rxe8+ {[%clk 0:01:07.6]} 28... Kxe8 {[%clk 0:01:06.1]} 29. Rb5
{[%clk 0:01:05.8]} 29... Bc8 {[%clk 0:01:06.2]} 30. f3 {[%clk 0:00:54.6]} 30...
Bxg4 {[%clk 0:00:53.7]} 31. fxg4 {[%clk 0:00:54.5]} 31... Rc8 {[%clk 0:00:54.3]}
32. Rxa5 {[%clk 0:00:36.8]} 32... Rc1+ {[%clk 0:00:53.9]} 33. Kf2 {[%clk
0:00:37.5]} 33... Rc2+ {[%clk 0:00:54.6]} 34. Kg1 {[%clk 0:00:33.5]} 34... Rg2+
{[%clk 0:00:54.6]} 35. Kh1 {[%clk 0:00:30]} 35... Rxb2 {[%clk 0:00:54.3]} 36.
Kg1 {[%clk 0:00:30.7]} 36... Rg2+ {[%clk 0:00:53.7]} 37. Kh1 {[%clk 0:00:30.6]}
37... Rd2 {[%clk 0:00:50.6]} 38. Kg1 {[%clk 0:00:30]} 38... Kf7 {[%clk
0:00:45.1]} 39. a4 {[%clk 0:00:29.6]} 39... Kg6 {[%clk 0:00:45.3]} 40. Ra8
{[%clk 0:00:24.2]} 40... Rxd5 {[%clk 0:00:42.2]} 41. a5 {[%clk 0:00:24.6]} 41...
Rd1+ {[%clk 0:00:40.1]} 42. Kf2 {[%clk 0:00:22.5]} 42... Rd2+ {[%clk 0:00:40.2]}
43. Kg1 {[%clk 0:00:14.2]} 43... Rg2+ {[%clk 0:00:39.9]} 44. Kh1 {[%clk
0:00:14.1]} 44... Ra2 {[%clk 0:00:39.3]} 45. Kg1 {[%clk 0:00:13.9]} 45... d5
{[%clk 0:00:39.6]} 46. a6 {[%clk 0:00:13.9]} 46... d4 {[%clk 0:00:34.6]} 47. a7
{[%clk 0:00:14]} 47... Kg7 {[%clk 0:00:31.2]} 48. Kf1 {[%clk 0:00:08.4]} 48...
d3 {[%clk 0:00:22.1]} 49. Ke1 {[%clk 0:00:08.7]} 49... Kh7 {[%clk 0:00:19.4]}
50. Kd1 {[%clk 0:00:08.5]} 50... Kg7 {[%clk 0:00:19.6]} 51. Kc1 {[%clk
0:00:08.3]} 51... Kh7 {[%clk 0:00:17.9]} 52. Kd1 {[%clk 0:00:08.4]} 52... Kg7
{[%clk 0:00:16.3]} 53. Kc1 {[%clk 0:00:08.7]} 53... Kh7 {[%clk 0:00:07.6]} 54.
Kb1 {[%clk 0:00:06.1]} 54... d2 {[%clk 0:00:06.8]} 55. Rd8 {[%clk 0:00:06.5]}
55... Rxa7 {[%clk 0:00:05]} 56. Rxd2 {[%clk 0:00:07.1]} 56... Kg6 {[%clk
0:00:04.6]} 57. Rf2 {[%clk 0:00:07.2]} 57... Ra4 {[%clk 0:00:04.6]} 58. Kc1
{[%clk 0:00:05.1]} 58... Rxg4 {[%clk 0:00:05.2]} 59. Kd1 {[%clk 0:00:05.7]}
59... Re4 {[%clk 0:00:05.8]} 60. Kd2 {[%clk 0:00:05.5]} 60... f5 {[%clk
0:00:05.6]} 61. Kd3 {[%clk 0:00:06]} 61... Re1 {[%clk 0:00:05.4]} 62. Rb2 {[%clk
0:00:04.5]} 62... Kh5 {[%clk 0:00:04.9]} 63. Kd2 {[%clk 0:00:03.6]} 63... Re8
{[%clk 0:00:03.9]} 64. Kd3 {[%clk 0:00:03.7]} 64... Kg4 {[%clk 0:00:03.8]} 65.
Rb4+ {[%clk 0:00:03.4]} 65... Kf3 {[%clk 0:00:04.2]} 66. Rb5 {[%clk 0:00:02.2]}
66... Rd8+ {[%clk 0:00:04.6]} 67. Kc2 {[%clk 0:00:01.9]} 67... Rf8 {[%clk
0:00:05.5]} 68. Kd3 {[%clk 0:00:02]} 68... Kg2 {[%clk 0:00:05.8]} 69. Ke3 {[%clk
0:00:01.5]} 69... Kxh2 {[%clk 0:00:05.7]} 70. g4 {[%clk 0:00:02.2]} 70... fxg4
{[%clk 0:00:05.5]} 71. Rxg5 {[%clk 0:00:02.8]} 71... g3 {[%clk 0:00:05.1]} 72.
Rh5 {[%clk 0:00:03]} 72... g2 {[%clk 0:00:06]} 73. Rg5 {[%clk 0:00:03.4]} 73...
g1=Q+ {[%clk 0:00:06.4]} 74. Kd3 {[%clk 0:00:03.9]} 74... Qxg5 {[%clk
0:00:06.3]} 75. Ke2 {[%clk 0:00:04.8]} 75... Qe7+ {[%clk 0:00:06.7]} 76. Kd1
{[%clk 0:00:05.7]} 76... Rd8+ {[%clk 0:00:07.2]} 77. Kc2 {[%clk 0:00:06.6]}
77... Qc7+ {[%clk 0:00:07.8]} 78. Kb3 {[%clk 0:00:07.5]} 78... Rb8+ {[%clk
0:00:08.3]} 79. Ka3 {[%clk 0:00:08.4]} 79... Qa7# {[%clk 0:00:08.8]} 0-1

[Event "Early-Titled-Tuesday-Blitz-August-29-2023"]
[Site "Chess.com"]
[Date "2023.08.29"]
[Round "3"]
[White "MatyChess1"]
[Black "Marcin"]
[Result "0-1"]
[WhiteElo "2672"]
[BlackElo "2485"]
[TimeControl "180+1"]
[EndTime "8:30:34 PDT"]
[Termination "Marcin won by resignation"]

1. d4 {[%clk 0:03:00.9]} 1... g6 {[%clk 0:02:55.9]} 2. e4 {[%clk 0:02:59.5]}
2... Bg7 {[%clk 0:02:56.3]} 3. Nf3 {[%clk 0:03:00.1]} 3... a6 {[%clk 0:02:56.8]}
4. c3 {[%clk 0:02:59.4]} 4... d6 {[%clk 0:02:56.3]} 5. Bd3 {[%clk 0:02:59.4]}
5... Nd7 {[%clk 0:02:56.6]} 6. O-O {[%clk 0:02:59.5]} 6... b6 {[%clk 0:02:54.6]}
7. Re1 {[%clk 0:02:59.6]} 7... Bb7 {[%clk 0:02:55.2]} 8. Nbd2 {[%clk 0:03:00.1]}
8... e6 {[%clk 0:02:52.1]} 9. Nf1 {[%clk 0:03:00.7]} 9... Ne7 {[%clk 0:02:52.5]}
10. Ng3 {[%clk 0:03:01.6]} 10... O-O {[%clk 0:02:53]} 11. Bd2 {[%clk 0:03:02.2]}
11... c5 {[%clk 0:02:53.2]} 12. Qc1 {[%clk 0:03:02.9]} 12... Re8 {[%clk
0:02:52.7]} 13. Bh6 {[%clk 0:03:03.1]} 13... Bh8 {[%clk 0:02:53.1]} 14. h4
{[%clk 0:02:55.6]} 14... Rc8 {[%clk 0:02:52.6]} 15. Qd2 {[%clk 0:02:54.7]} 15...
Nf6 {[%clk 0:02:41.5]} 16. h5 {[%clk 0:02:49.3]} 16... cxd4 {[%clk 0:02:35.2]}
17. cxd4 {[%clk 0:02:49.8]} 17... Ng4 {[%clk 0:02:26]} 18. hxg6 {[%clk
0:02:44.6]} 18... hxg6 {[%clk 0:02:23.5]} 19. Bg5 {[%clk 0:02:43.3]} 19... Qd7
{[%clk 0:02:14.1]} 20. Rad1 {[%clk 0:02:36.1]} 20... f6 {[%clk 0:02:09.3]} 21.
Bf4 {[%clk 0:02:30.9]} 21... e5 {[%clk 0:02:08.5]} 22. Bh6 {[%clk 0:02:26.5]}
22... Nxh6 {[%clk 0:02:07.6]} 23. Qxh6 {[%clk 0:02:26.5]} 23... Bg7 {[%clk
0:02:08.2]} 24. Qh4 {[%clk 0:02:24.5]} 24... Qe6 {[%clk 0:01:55.1]} 25. Bb1
{[%clk 0:02:20.8]} 25... Kf7 {[%clk 0:01:47.8]} 26. Nh2 {[%clk 0:01:47.7]} 26...
Rh8 {[%clk 0:01:45.6]} 27. Qg4 {[%clk 0:01:48]} 27... Qxg4 {[%clk 0:01:45]} 28.
Nxg4 {[%clk 0:01:48.2]} 28... Rhd8 {[%clk 0:01:36.4]} 29. a3 {[%clk 0:01:47.6]}
29... Kf8 {[%clk 0:01:32.6]} 30. Ne3 {[%clk 0:01:41.1]} 30... Nc6 {[%clk
0:01:30.2]} 31. Ne2 {[%clk 0:01:36.8]} 31... Nxd4 {[%clk 0:01:17.8]} 32. Nxd4
{[%clk 0:01:36.5]} 32... exd4 {[%clk 0:01:18.7]} 33. Rxd4 {[%clk 0:01:37.4]}
33... f5 {[%clk 0:01:18.4]} 34. Rb4 {[%clk 0:01:34.3]} 34... fxe4 {[%clk
0:01:08.7]} 35. Rxb6 {[%clk 0:01:32.3]} 35... Rc7 {[%clk 0:01:08.6]} 36. Ba2
{[%clk 0:01:18.6]} 36... Bd4 {[%clk 0:00:56.5]} 37. Rb4 {[%clk 0:01:13.3]} 37...
Bc5 {[%clk 0:00:55]} 38. Rc4 {[%clk 0:01:03]} 38... d5 {[%clk 0:00:54.5]} 39.
Rcc1 {[%clk 0:01:01.6]} 39... d4 {[%clk 0:00:52.1]} 40. Ng4 {[%clk 0:00:59.6]}
40... Bb6 {[%clk 0:00:44.9]} 41. Rxc7 {[%clk 0:00:40]} 41... Bxc7 {[%clk
0:00:45.2]} 42. Nf6 {[%clk 0:00:26.4]} 42... d3 {[%clk 0:00:37.2]} 43. Nh7+
{[%clk 0:00:25.3]} 43... Kg7 {[%clk 0:00:36.2]} 44. Ng5 {[%clk 0:00:25.8]} 44...
Rd7 {[%clk 0:00:08.3]} 45. g3 {[%clk 0:00:14.5]} 45... Kf6 {[%clk 0:00:07.3]}
46. Nxe4+ {[%clk 0:00:04.2]} 46... Bxe4 {[%clk 0:00:06.6]} 47. Rxe4 {[%clk
0:00:05.1]} 47... d2 {[%clk 0:00:07.3]} 48. Bb3 {[%clk 0:00:05.7]} 48... d1=Q+
{[%clk 0:00:07]} 49. Bxd1 {[%clk 0:00:06.4]} 49... Rxd1+ {[%clk 0:00:07.6]} 50.
Kg2 {[%clk 0:00:07.3]} 50... Be5 {[%clk 0:00:06.8]} 51. Rc4 {[%clk 0:00:03]}
51... Rd6 {[%clk 0:00:05.3]} 52. b4 {[%clk 0:00:03.3]} 52... Bb2 {[%clk
0:00:03.5]} 53. a4 {[%clk 0:00:03.8]} 53... Bd4 {[%clk 0:00:03.9]} 54. b5 {[%clk
0:00:04.1]} 54... a5 {[%clk 0:00:04.2]} 55. f4 {[%clk 0:00:03.2]} 55... Bb6
{[%clk 0:00:04.7]} 56. Kf3 {[%clk 0:00:03.8]} 56... Kf5 {[%clk 0:00:05.2]} 57.
g4+ {[%clk 0:00:03.4]} 57... Kf6 {[%clk 0:00:05.8]} 58. Ke4 {[%clk 0:00:04.2]}
58... Re6+ {[%clk 0:00:05.7]} 59. Kd5 {[%clk 0:00:04.3]} 59... Ke7 {[%clk
0:00:05.9]} 60. Rc2 {[%clk 0:00:03]} 60... Rf6 {[%clk 0:00:05.9]} 61. Ke4 {[%clk
0:00:03]} 61... Kd7 {[%clk 0:00:05.4]} 62. Rd2+ {[%clk 0:00:02.9]} 62... Rd6
{[%clk 0:00:05.2]} 63. Rh2 {[%clk 0:00:02.7]} 63... Kc7 {[%clk 0:00:04.3]} 64.
Rh7+ {[%clk 0:00:02.3]} 64... Rd7 {[%clk 0:00:04.9]} 65. Rh6 {[%clk 0:00:02.6]}
65... Re7+ {[%clk 0:00:04.8]} 66. Kd5 {[%clk 0:00:02.1]} 66... Rf7 {[%clk
0:00:05.4]} 67. Rxg6 {[%clk 0:00:02.1]} 67... Rxf4 {[%clk 0:00:05.7]} 68. Rg7+
{[%clk 0:00:02.7]} 68... Kb8 {[%clk 0:00:05.5]} 69. g5 {[%clk 0:00:03.2]} 69...
Bf2 {[%clk 0:00:02.8]} 70. Kc6 {[%clk 0:00:03.4]} 70... Rc4+ {[%clk 0:00:02.8]}
71. Kd5 {[%clk 0:00:03]} 71... Rxa4 {[%clk 0:00:03]} 72. g6 {[%clk 0:00:02]}
72... Bd4 {[%clk 0:00:01.3]} 73. Kc6 {[%clk 0:00:02]} 73... Bxg7 {[%clk
0:00:01.3]} 74. b6 {[%clk 0:00:02]} 74... Rb4 {[%clk 0:00:02]} 75. b7 {[%clk
0:00:02]} 75... a4 {[%clk 0:00:02.5]} 76. Kd6 {[%clk 0:00:02.9]} 76... Rxb7
{[%clk 0:00:03.1]} 77. Ke6 {[%clk 0:00:03.8]} 77... a3 {[%clk 0:00:03.9]} 78.
Kf5 {[%clk 0:00:04]} 78... a2 {[%clk 0:00:04.8]} 0-1

[Event "Early-Titled-Tuesday-Blitz-August-29-2023"]
[Site "Chess.com"]
[Date "2023.08.29"]
[Round "3"]
[White "jsdbv18"]
[Black "Grossboss19"]
[Result "1-0"]
[WhiteElo "2593"]
[BlackElo "2517"]
[TimeControl "180+1"]
[EndTime "8:30:36 PDT"]
[Termination "jsdbv18 won by resignation"]

1. d4 {[%clk 0:02:59.3]} 1... Nf6 {[%clk 0:02:59.6]} 2. Bf4 {[%clk 0:02:58.4]}
2... e6 {[%clk 0:03:00.5]} 3. e3 {[%clk 0:02:58.5]} 3... c5 {[%clk 0:02:59.9]}
4. c3 {[%clk 0:02:58.4]} 4... Nc6 {[%clk 0:02:54.2]} 5. Nd2 {[%clk 0:02:57.7]}
5... d5 {[%clk 0:02:53.9]} 6. Ngf3 {[%clk 0:02:57.2]} 6... Bd6 {[%clk
0:02:54.5]} 7. Ne5 {[%clk 0:02:56.5]} 7... Qc7 {[%clk 0:02:53.9]} 8. Ndf3 {[%clk
0:02:55.7]} 8... Nd7 {[%clk 0:02:52.8]} 9. Nxc6 {[%clk 0:02:53.1]} 9... bxc6
{[%clk 0:02:50.8]} 10. Bxd6 {[%clk 0:02:50.7]} 10... Qxd6 {[%clk 0:02:50.1]} 11.
Bd3 {[%clk 0:02:37.3]} 11... O-O {[%clk 0:02:46.8]} 12. O-O {[%clk 0:02:36.6]}
12... h6 {[%clk 0:02:46.7]} 13. e4 {[%clk 0:02:31.2]} 13... cxd4 {[%clk
0:02:45.9]} 14. Nxd4 {[%clk 0:02:28]} 14... Bb7 {[%clk 0:02:37.6]} 15. exd5
{[%clk 0:02:20.7]} 15... exd5 {[%clk 0:02:35.2]} 16. Re1 {[%clk 0:02:17.2]}
16... Rfe8 {[%clk 0:02:32.8]} 17. Qd2 {[%clk 0:01:58.2]} 17... Ne5 {[%clk
0:02:27.3]} 18. Bc2 {[%clk 0:01:55.4]} 18... c5 {[%clk 0:02:25.1]} 19. Nf5
{[%clk 0:01:53.8]} 19... Qf6 {[%clk 0:02:24.9]} 20. Qf4 {[%clk 0:01:50.6]} 20...
Qg5 {[%clk 0:02:16.7]} 21. Qxg5 {[%clk 0:01:46.1]} 21... hxg5 {[%clk 0:02:16.6]}
22. Nd6 {[%clk 0:01:46.4]} 22... Re7 {[%clk 0:02:16.4]} 23. Nxb7 {[%clk
0:01:46.1]} 23... Rae8 {[%clk 0:02:16.4]} 24. Nxc5 {[%clk 0:01:15.4]} 24... Nf3+
{[%clk 0:02:16]} 25. gxf3 {[%clk 0:01:15.4]} 25... Rxe1+ {[%clk 0:02:16.9]} 26.
Rxe1 {[%clk 0:01:15.2]} 26... Rxe1+ {[%clk 0:02:17.8]} 27. Kg2 {[%clk
0:01:15.4]} 27... Re2 {[%clk 0:02:16.5]} 28. Bb3 {[%clk 0:01:15.1]} 28... Rxb2
{[%clk 0:02:15]} 29. Bxd5 {[%clk 0:01:15.2]} 29... Rc2 {[%clk 0:02:12.1]} 30.
Ne4 {[%clk 0:01:15.3]} 30... Kf8 {[%clk 0:02:08.5]} 31. Bb3 {[%clk 0:01:13.7]}
31... Rc1 {[%clk 0:02:07.6]} 32. Nxg5 {[%clk 0:01:12.9]} 32... f5 {[%clk
0:02:01.2]} 33. c4 {[%clk 0:01:12]} 33... Ke7 {[%clk 0:02:00.5]} 34. f4 {[%clk
0:01:11.6]} 34... a5 {[%clk 0:01:58.5]} 35. Nf3 {[%clk 0:01:10.6]} 35... Kd6
{[%clk 0:01:57.8]} 36. Ne5 {[%clk 0:01:08.5]} 36... Rc3 {[%clk 0:01:54]} 37. Ba4
{[%clk 0:01:04.2]} 37... Ra3 {[%clk 0:01:32.5]} 38. Bc2 {[%clk 0:01:04.2]} 38...
Rxa2 {[%clk 0:01:28.6]} 39. Bxf5 {[%clk 0:01:03.9]} 39... a4 {[%clk 0:01:26.1]}
40. Nd3 {[%clk 0:01:02]} 40... Ra1 {[%clk 0:01:20.9]} 41. c5+ {[%clk 0:01:02.1]}
41... Kc7 {[%clk 0:01:20.1]} 42. Nb4 {[%clk 0:00:54.7]} 42... a3 {[%clk
0:01:14.7]} 43. c6 {[%clk 0:00:51.4]} 43... a2 {[%clk 0:01:02.2]} 44. Be6 {[%clk
0:00:51]} 44... Rg1+ {[%clk 0:01:00.8]} 45. Kxg1 {[%clk 0:00:50.5]} 45... a1=Q+
{[%clk 0:01:01.7]} 46. Kg2 {[%clk 0:00:51]} 46... Qd4 {[%clk 0:00:56.2]} 47.
Nd5+ {[%clk 0:00:49.3]} 47... Kxc6 {[%clk 0:00:53.1]} 48. f5 {[%clk 0:00:49.6]}
48... Kd6 {[%clk 0:00:51.9]} 49. Ne3 {[%clk 0:00:44.3]} 49... Ke5 {[%clk
0:00:48.6]} 50. Bf7 {[%clk 0:00:42]} 50... Kf4 {[%clk 0:00:45.1]} 51. Bg6 {[%clk
0:00:41.4]} 51... Qe4+ {[%clk 0:00:43.3]} 52. Kg1 {[%clk 0:00:39.5]} 52... Qb1+
{[%clk 0:00:42.6]} 53. Kg2 {[%clk 0:00:39.6]} 53... Qe4+ {[%clk 0:00:43.5]} 54.
Kg1 {[%clk 0:00:37.6]} 54... Qb7 {[%clk 0:00:42]} 55. Bh5 {[%clk 0:00:35.2]}
55... Kg5 {[%clk 0:00:38.1]} 56. Be2 {[%clk 0:00:34.9]} 56... Kh4 {[%clk
0:00:35.8]} 57. Bf1 {[%clk 0:00:35.1]} 57... Qb4 {[%clk 0:00:33.2]} 58. Kg2
{[%clk 0:00:32.3]} 58... Qe4+ {[%clk 0:00:32.1]} 59. Kg1 {[%clk 0:00:31.4]}
59... Qe7 {[%clk 0:00:28.3]} 60. Be2 {[%clk 0:00:30.7]} 60... Kg5 {[%clk
0:00:24.6]} 61. Kg2 {[%clk 0:00:30]} 61... Qb7+ {[%clk 0:00:24.3]} 62. Bf3
{[%clk 0:00:30]} 62... Qb1 {[%clk 0:00:21.8]} 63. Kg3 {[%clk 0:00:27.7]} 63...
Qb8+ {[%clk 0:00:20.4]} 64. Kg2 {[%clk 0:00:27.8]} 64... Kf4 {[%clk 0:00:21.1]}
65. Bd5 {[%clk 0:00:24.8]} 65... Qd8 {[%clk 0:00:18.9]} 66. h3 {[%clk
0:00:22.4]} 66... Qg5+ {[%clk 0:00:18.8]} 67. Kf1 {[%clk 0:00:21.9]} 67... Qd8
{[%clk 0:00:18.1]} 68. Kg2 {[%clk 0:00:19.4]} 68... Ke5 {[%clk 0:00:18.1]} 69.
Kf3 {[%clk 0:00:16.9]} 69... Qh4 {[%clk 0:00:17.7]} 70. Kg2 {[%clk 0:00:17.3]}
70... Kf4 {[%clk 0:00:17.9]} 71. Bc6 {[%clk 0:00:15.2]} 71... Qh5 {[%clk
0:00:17.8]} 72. Bd5 {[%clk 0:00:14.1]} 72... Qg5+ {[%clk 0:00:18.2]} 73. Kf1
{[%clk 0:00:14.2]} 73... Qh6 {[%clk 0:00:17.3]} 74. Bg2 {[%clk 0:00:13.9]} 74...
Ke5 {[%clk 0:00:16.6]} 75. Ng4+ {[%clk 0:00:13.8]} 75... Kxf5 {[%clk 0:00:16.9]}
76. Nxh6+ {[%clk 0:00:14.7]} 76... gxh6 {[%clk 0:00:17.7]} 77. Kg1 {[%clk
0:00:14.6]} 77... Kf4 {[%clk 0:00:18.1]} 78. Kh2 {[%clk 0:00:14.8]} 78... h5
{[%clk 0:00:18.6]} 79. Kg1 {[%clk 0:00:13.2]} 79... h4 {[%clk 0:00:18.9]} 80.
Kf1 {[%clk 0:00:13.8]} 80... Ke5 {[%clk 0:00:18.7]} 81. Ke2 {[%clk 0:00:14.5]}
81... Kf4 {[%clk 0:00:19.6]} 82. Kd3 {[%clk 0:00:14.2]} 82... Ke5 {[%clk
0:00:19.8]} 83. Ke3 {[%clk 0:00:14.9]} 83... Kf5 {[%clk 0:00:20.1]} 84. Kf3
{[%clk 0:00:15.6]} 84... Kg5 {[%clk 0:00:20.8]} 85. Ke4 {[%clk 0:00:16.3]} 85...
Kg6 {[%clk 0:00:19.7]} 86. Kf4 {[%clk 0:00:16.9]} 86... Kh5 {[%clk 0:00:20.4]}
87. Kf5 {[%clk 0:00:17.5]} 87... Kh6 {[%clk 0:00:21.1]} 88. Kg4 {[%clk
0:00:18.3]} 88... Kh7 {[%clk 0:00:20.8]} 89. Kxh4 {[%clk 0:00:18.9]} 89... Kg8
{[%clk 0:00:21.7]} 90. Kg5 {[%clk 0:00:19.5]} 90... Kh8 {[%clk 0:00:22.6]} 91.
f4 {[%clk 0:00:19.8]} 91... Kg7 {[%clk 0:00:23.5]} 92. Kf5 {[%clk 0:00:20.2]}
92... Kf8 {[%clk 0:00:24.4]} 93. Kf6 {[%clk 0:00:20.5]} 93... Kg8 {[%clk
0:00:25.3]} 94. Ke7 {[%clk 0:00:20.6]} 94... Kh8 {[%clk 0:00:26.2]} 95. f5
{[%clk 0:00:21.3]} 1-0

[Event "Early-Titled-Tuesday-Blitz-August-29-2023"]
[Site "Chess.com"]
[Date "2023.08.29"]
[Round "3"]
[White "FeketeBarika"]
[Black "JoliyRoger"]
[Result "1/2-1/2"]
[WhiteElo "2319"]
[BlackElo "2494"]
[TimeControl "180+1"]
[EndTime "8:30:54 PDT"]
[Termination "Game drawn by repetition"]

1. Nf3 {[%clk 0:02:41.5]} 1... Nf6 {[%clk 0:02:58.9]} 2. g3 {[%clk 0:02:41.4]}
2... c5 {[%clk 0:02:59.4]} 3. Bg2 {[%clk 0:02:41.7]} 3... Nc6 {[%clk 0:03:00.3]}
4. c4 {[%clk 0:02:41.6]} 4... e6 {[%clk 0:03:00.4]} 5. Nc3 {[%clk 0:02:41.4]}
5... Be7 {[%clk 0:03:00.9]} 6. e4 {[%clk 0:02:38.8]} 6... d6 {[%clk 0:03:00.2]}
7. O-O {[%clk 0:02:38]} 7... O-O {[%clk 0:03:00.8]} 8. d3 {[%clk 0:02:38.5]}
8... Rb8 {[%clk 0:03:00]} 9. Be3 {[%clk 0:02:36.1]} 9... a6 {[%clk 0:03:00.3]}
10. a4 {[%clk 0:02:35.2]} 10... Bd7 {[%clk 0:02:58.7]} 11. b3 {[%clk 0:02:32.6]}
11... Qc7 {[%clk 0:02:48.5]} 12. Qe2 {[%clk 0:02:19.5]} 12... Na5 {[%clk
0:02:47.8]} 13. Rfb1 {[%clk 0:02:12.2]} 13... Rfd8 {[%clk 0:02:41.9]} 14. d4
{[%clk 0:02:03.3]} 14... cxd4 {[%clk 0:02:41.5]} 15. Nxd4 {[%clk 0:02:03.8]}
15... Nc6 {[%clk 0:02:39.8]} 16. Nc2 {[%clk 0:02:01.8]} 16... h6 {[%clk
0:02:24.2]} 17. f4 {[%clk 0:01:56.9]} 17... Re8 {[%clk 0:02:14.3]} 18. Kh1
{[%clk 0:01:56.4]} 18... Bf8 {[%clk 0:02:13.9]} 19. h3 {[%clk 0:01:51.2]} 19...
Na5 {[%clk 0:02:01.8]} 20. Qf2 {[%clk 0:01:47.1]} 20... b6 {[%clk 0:02:00.9]}
21. Nb4 {[%clk 0:01:38.8]} 21... Nxb3 {[%clk 0:01:22.7]} 22. Nxa6 {[%clk
0:01:25.8]} 22... Qxc4 {[%clk 0:01:23.3]} 23. Nxb8 {[%clk 0:01:20.8]} 23... Nxa1
{[%clk 0:01:10.3]} 24. Nxd7 {[%clk 0:01:19.3]} 24... Nxd7 {[%clk 0:01:09.6]} 25.
Qb2 {[%clk 0:01:02]} 25... Rc8 {[%clk 0:01:09]} 26. Nb5 {[%clk 0:00:41.8]} 26...
Nc2 {[%clk 0:01:08.5]} 27. Bg1 {[%clk 0:00:42.3]} 27... Qxa4 {[%clk 0:00:57.1]}
28. Rc1 {[%clk 0:00:40.4]} 28... Nf6 {[%clk 0:00:20.5]} 29. Nc3 {[%clk 0:00:38]}
29... Rxc3 {[%clk 0:00:18.3]} 30. Qxc3 {[%clk 0:00:37.5]} 30... Nb4 {[%clk
0:00:18.7]} 31. Qd4 {[%clk 0:00:28.5]} 31... d5 {[%clk 0:00:18.1]} 32. e5 {[%clk
0:00:21.3]} 32... Bc5 {[%clk 0:00:17.6]} 33. Rxc5 {[%clk 0:00:13.3]} 33... bxc5
{[%clk 0:00:17.3]} 34. Qxc5 {[%clk 0:00:14]} 34... Nd7 {[%clk 0:00:17.3]} 35.
Qc8+ {[%clk 0:00:13.6]} 35... Kh7 {[%clk 0:00:17.9]} 36. Qc3 {[%clk 0:00:12.1]}
36... Nc6 {[%clk 0:00:13.6]} 37. Qd3+ {[%clk 0:00:10.2]} 37... Kg8 {[%clk
0:00:14.1]} 38. h4 {[%clk 0:00:10.4]} 38... Ne7 {[%clk 0:00:11.2]} 39. Kh2
{[%clk 0:00:10.3]} 39... Nf8 {[%clk 0:00:10.8]} 40. Qd4 {[%clk 0:00:09.4]} 40...
Qd7 {[%clk 0:00:11.2]} 41. Qc5 {[%clk 0:00:09.2]} 41... Nf5 {[%clk 0:00:11.1]}
42. Qb4 {[%clk 0:00:08.6]} 42... h5 {[%clk 0:00:11.1]} 43. Bc5 {[%clk
0:00:08.1]} 43... Ng6 {[%clk 0:00:11.5]} 44. Qb8+ {[%clk 0:00:07.5]} 44... Kh7
{[%clk 0:00:10.6]} 45. Qb1 {[%clk 0:00:08.1]} 45... Qc6 {[%clk 0:00:09]} 46. Bg1
{[%clk 0:00:07]} 46... Qc3 {[%clk 0:00:09.1]} 47. Bf2 {[%clk 0:00:06.5]} 47...
Qd2 {[%clk 0:00:08.9]} 48. Qe1 {[%clk 0:00:05.6]} 48... Qxe1 {[%clk 0:00:08.8]}
49. Bxe1 {[%clk 0:00:06.5]} 49... Nge7 {[%clk 0:00:08.8]} 50. Bf3 {[%clk
0:00:06.6]} 50... g6 {[%clk 0:00:08.9]} 51. Bf2 {[%clk 0:00:06.5]} 51... Kg8
{[%clk 0:00:09.2]} 52. Kg2 {[%clk 0:00:06.7]} 52... Kf8 {[%clk 0:00:09.7]} 53.
Kf1 {[%clk 0:00:07.1]} 53... Ke8 {[%clk 0:00:10.4]} 54. Ke2 {[%clk 0:00:07.5]}
54... Kd7 {[%clk 0:00:11.2]} 55. g4 {[%clk 0:00:07.7]} 55... Nc6 {[%clk
0:00:11.6]} 56. gxf5 {[%clk 0:00:07.6]} 56... gxf5 {[%clk 0:00:12.2]} 57. Bxh5
{[%clk 0:00:07.6]} 57... Ke7 {[%clk 0:00:12.6]} 58. Kd3 {[%clk 0:00:07.7]} 58...
Nb4+ {[%clk 0:00:12.2]} 59. Kc3 {[%clk 0:00:06.8]} 59... Nc6 {[%clk 0:00:12.1]}
60. Bf3 {[%clk 0:00:06.8]} 60... Kf8 {[%clk 0:00:12]} 61. h5 {[%clk 0:00:07.1]}
61... Kg7 {[%clk 0:00:12.5]} 62. Bh4 {[%clk 0:00:06.9]} 62... Kh7 {[%clk
0:00:11.2]} 63. Bf6 {[%clk 0:00:06.5]} 63... Na5 {[%clk 0:00:10.8]} 64. Kb4
{[%clk 0:00:06]} 64... Nc4 {[%clk 0:00:11]} 65. Kc5 {[%clk 0:00:05.8]} 65... Nd2
{[%clk 0:00:10.9]} 66. Be2 {[%clk 0:00:05.9]} 66... Ne4+ {[%clk 0:00:10.6]} 67.
Kd4 {[%clk 0:00:05.6]} 67... Ng3 {[%clk 0:00:09.6]} 68. Bf3 {[%clk 0:00:04.5]}
68... Kh6 {[%clk 0:00:09.6]} 69. Bg5+ {[%clk 0:00:04.1]} 69... Kh7 {[%clk
0:00:09.4]} 70. h6 {[%clk 0:00:04.6]} 70... Nf1 {[%clk 0:00:08.3]} 71. Kd3
{[%clk 0:00:04.4]} 71... Ng3 {[%clk 0:00:07.5]} 72. Ke3 {[%clk 0:00:03.5]} 72...
Kg8 {[%clk 0:00:05.2]} 73. Kf2 {[%clk 0:00:01.9]} 73... Ne4+ {[%clk 0:00:05.7]}
74. Bxe4 {[%clk 0:00:02.4]} 74... dxe4 {[%clk 0:00:03.9]} 75. Ke3 {[%clk
0:00:03.3]} 75... Kh7 {[%clk 0:00:04.3]} 76. Kd4 {[%clk 0:00:03.9]} 76... Kg6
{[%clk 0:00:05]} 77. Ke3 {[%clk 0:00:04.6]} 77... Kh7 {[%clk 0:00:05.6]} 78. Kd4
{[%clk 0:00:04.9]} 78... Kg6 {[%clk 0:00:06.3]} 79. Ke3 {[%clk 0:00:05.4]} 79...
Kh7 {[%clk 0:00:07]} 1/2-1/2